bitfinex/quotes_BTCUSD_20220304
["timestamp","ask_amount","ask_price","bid_price","bid_amount"]
[1646379075713,0.52145213,41389.0,41381.0,0.1]
[1646379076018,0.17271466,41389.0,41380.0,0.16856889]
[1646379076313,0.52145213,41389.0,41380.0,0.16856889]
[1646379076514,0.34873747,41388.0,41380.0,0.16856889]
[1646379076715,0.52145213,41389.0,41380.0,0.16856889]
[1646379077315,0.52172756,41389.0,41380.0,0.16856889]
[1646379078117,0.3490129,41388.0,41382.0,0.06914158]
[1646379079361,0.52172756,41389.0,41382.0,0.06914158]
[1646379079561,0.3490129,41388.0,41382.0,0.06914158]
[1646379080162,0.52172756,41389.0,41381.0,0.001]
[1646379080364,0.3490129,41388.0,41381.0,0.001]
[1646379080765,0.3490129,41388.0,41380.0,0.16856889]
[1646379082066,0.27303365,41384.0,41380.0,0.16856889]
[1646379082265,0.3490129,41387.0,41380.0,0.16856889]
[1646379082913,0.3490129,41388.0,41380.0,0.16856889]
[1646379083314,0.25348239,41387.0,41382.0,0.07017661]
[1646379083613,0.60249529,41387.0,41382.0,0.07017661]
[1646379084611,0.3490129,41387.0,41380.0,0.16856889]
[1646379085213,0.29925321,41384.0,41380.0,0.16856889]
[1646379086460,0.26882491,41382.0,41380.0,0.16856889]
[1646379086661,0.29925321,41386.0,41381.0,0.367011]
[1646379086859,0.29925321,41386.0,41380.0,0.16856889]
[1646379087262,0.29925321,41385.0,41380.0,0.16856889]
[1646379087963,0.3490129,41387.0,41380.0,0.16856889]
[1646379087964,0.29925321,41384.0,41380.0,0.16856889]
[1646379088162,0.17896225,41382.0,41380.0,0.16856889]
[1646379088363,0.27755812,41382.0,41380.0,0.16856889]
[1646379088562,0.57681133,41382.0,41380.0,0.001]
[1646379089563,0.29925321,41381.0,41380.0,0.001]
[1646379089764,0.99830262,41382.0,41380.0,0.001]
[1646379090213,0.3490129,41381.0,41380.0,0.001]
[1646379091012,0.66987036,41381.0,41380.0,0.001]
[1646379091514,0.66987036,41381.0,41380.0,0.00083906]
[1646379091811,1.07928618,41381.0,41380.0,0.00083906]
[1646379094362,0.66987036,41381.0,41380.0,0.00083906]
[1646379096962,0.70538708,41381.0,41380.0,0.00083906]
[1646379097363,0.66987036,41381.0,41380.0,0.00083906]
[1646379097563,0.76987036,41381.0,41380.0,0.00083906]
[1646379098209,0.49195379,41381.0,41380.0,0.00083906]
[1646379100011,0.79195379,41381.0,41380.0,0.00083906]
[1646379100412,0.42494279,41381.0,41380.0,0.00083906]
[1646379100611,0.79195379,41381.0,41380.0,0.00083906]
[1646379100810,0.42494279,41381.0,41380.0,0.00083906]
[1646379101110,0.79195379,41381.0,41380.0,0.00083906]
[1646379101310,0.42494279,41381.0,41380.0,0.00083906]
[1646379101568,0.42494279,41381.0,41380.0,0.00017761]
[1646379101870,0.79195379,41381.0,41380.0,0.00017761]
[1646379102267,0.367011,41380.0,41376.0,0.00117761]
[1646379102468,0.29928215,41377.0,41376.0,0.00117761]
[1646379102667,0.3,41377.0,41376.0,0.00117761]
[1646379103066,0.29928218,41377.0,41376.0,0.00117761]
[1646379104168,0.367011,41377.0,41376.0,0.00117761]
[1646379104367,1.01619121,41377.0,41376.0,0.00117761]
[1646379104569,0.667011,41377.0,41376.0,0.00117761]
[1646379104767,0.367011,41377.0,41376.0,0.00117761]
[1646379104969,0.3,41377.0,41376.0,0.00117761]
[1646379105205,0.667011,41377.0,41376.0,0.00117761]
[1646379105808,0.367011,41377.0,41376.0,0.00117761]
[1646379106006,0.34918021,41378.0,41376.0,0.00117761]
[1646379106407,0.34918021,41379.0,41376.0,0.00117761]
[1646379106610,0.29924405,41377.0,41376.0,0.00117761]
[1646379107310,0.59924405,41377.0,41376.0,0.00117761]
[1646379107708,0.96625505,41377.0,41376.0,0.00117761]
[1646379109357,0.667011,41377.0,41376.0,0.00117761]
[1646379111860,0.9662329,41377.0,41376.0,0.00117761]
[1646379112264,0.5992219,41377.0,41376.0,0.00117761]
[1646379112462,0.3,41377.0,41376.0,0.00117761]
[1646379112715,0.59921993,41377.0,41376.0,0.00117761]
[1646379113817,0.96623093,41377.0,41376.0,0.00117761]
[1646379114017,0.667011,41377.0,41376.0,0.00117761]
[1646379114820,0.367011,41377.0,41376.0,0.00117761]
[1646379115020,0.34918021,41379.0,41376.0,0.00117761]
[1646379115217,0.009682,41378.0,41376.0,0.00117761]
[1646379115617,0.29923192,41379.0,41376.0,0.00117761]
[1646379123014,0.29923192,41379.0,41376.0,0.00111183]
[1646379124061,0.29923192,41378.0,41376.0,0.00111183]
[1646379127469,0.29923192,41377.0,41376.0,0.00111183]
[1646379129515,0.34918021,41379.0,41376.0,0.00111183]
[1646379130719,0.05473361,41380.0,41377.0,0.367011]
[1646379130720,0.3090561,41380.0,41377.0,0.367011]
[1646379130919,0.2993761,41382.0,41377.0,0.367011]
[1646379131318,0.2993761,41383.0,41377.0,0.367011]
[1646379131587,0.34918021,41385.0,41377.0,0.367011]
[1646379131588,0.2993761,41382.0,41377.0,0.367011]
[1646379131787,0.2993761,41382.0,41377.0,0.43698925]
[1646379132188,0.2993761,41382.0,41377.0,0.06997825]
[1646379132388,0.2993761,41382.0,41378.0,0.367011]
[1646379132589,0.2993761,41382.0,41377.0,0.06997825]
[1646379132790,0.2993761,41382.0,41376.0,0.00111183]
[1646379133287,0.2993761,41382.0,41377.0,0.367011]
[1646379133488,0.2993761,41381.0,41379.0,0.21222493]
[1646379133889,0.2993761,41381.0,41379.0,0.27351197]
[1646379134296,0.2993761,41381.0,41379.0,0.21222493]
[1646379134494,0.2993761,41382.0,41379.0,0.21222493]
[1646379135436,0.34918021,41384.0,41380.0,0.05276835]
[1646379135437,0.2993761,41381.0,41380.0,0.05276835]
[1646379135635,0.2993761,41382.0,41379.0,0.21222493]
[1646379135834,0.2993761,41381.0,41379.0,0.21222493]
[1646379136231,0.2993761,41381.0,41380.0,0.367011]
[1646379136633,0.2993761,41382.0,41376.0,0.05639665]
[1646379136832,0.2993761,41381.0,41377.0,0.367011]
[1646379137232,0.2993761,41381.0,41376.0,0.05539665]
[1646379138034,0.2993761,41381.0,41377.0,0.367011]
[1646379138434,0.2993761,41381.0,41376.0,0.05539665]
[1646379138742,0.2993761,41381.0,41376.0,0.00111183]
[1646379140570,0.2993761,41381.0,41376.0,0.07565266]
[1646379143618,0.2993761,41381.0,41377.0,0.367011]
[1646379144217,0.2993761,41382.0,41376.0,0.07565266]
[1646379144819,0.2993761,41384.0,41377.0,0.367011]
[1646379145022,0.34918021,41387.0,41377.0,0.367011]
[1646379145023,0.2993761,41387.0,41377.0,0.367011]
[1646379145220,0.3049,41394.0,41379.0,0.367011]
[1646379145221,0.2993761,41388.0,41379.0,0.367011]
[1646379145520,0.2993761,41388.0,41381.0,0.367011]
[1646379145921,0.47452037,41388.0,41381.0,0.367011]
[1646379146320,0.47452037,41388.0,41382.0,0.19856684]
[1646379146568,0.47452037,41388.0,41383.0,0.367011]
[1646379147065,0.47452037,41388.0,41384.0,0.367011]
[1646379147267,0.47452037,41388.0,41383.0,0.367011]
[1646379147466,0.17514427,41388.0,41383.0,0.367011]
[1646379147668,0.47452037,41388.0,41383.0,0.367011]
[1646379148165,0.47452037,41388.0,41384.0,0.367011]
[1646379148367,0.47452037,41388.0,41383.0,0.367011]
[1646379148570,0.17514427,41388.0,41383.0,0.367011]
[1646379150823,0.17514427,41388.0,41382.0,0.19856684]
[1646379151022,0.17514427,41388.0,41383.0,0.367011]
[1646379151523,0.17514427,41388.0,41382.0,0.19856684]
[1646379151721,0.17514427,41388.0,41383.0,0.367011]
[1646379151922,0.47452037,41388.0,41383.0,0.367011]
[1646379154071,0.2993761,41388.0,41383.0,0.367011]
[1646379154870,0.2993761,41388.0,41382.0,0.19856684]
[1646379155073,0.2993761,41388.0,41383.0,0.367011]
[1646379155272,0.73543186,41389.0,41383.0,0.367011]
[1646379155472,0.47951479,41389.0,41384.0,0.367011]
[1646379155672,0.48451479,41389.0,41382.0,0.19856684]
[1646379155871,0.48451479,41389.0,41383.0,0.367011]
[1646379156272,0.3043761,41389.0,41382.0,0.19856684]
[1646379156475,0.2993761,41388.0,41383.0,0.667011]
[1646379156674,0.2993761,41388.0,41383.0,0.367011]
[1646379156875,0.2993761,41388.0,41383.0,0.667011]
[1646379157074,0.2993761,41390.0,41383.0,0.667011]
[1646379157274,0.2993761,41390.0,41384.0,0.0486]
[1646379157476,0.1208,41391.0,41390.0,0.06953893]
[1646379157477,0.2993761,41391.0,41390.0,0.06953893]
[1646379157730,0.57263908,41394.0,41390.0,0.0486]
[1646379157731,0.2993761,41392.0,41390.0,0.0486]
[1646379158827,0.2993761,41392.0,41391.0,0.367011]
[1646379159030,0.2993761,41392.0,41391.0,0.715611]
[1646379159228,0.2993761,41393.0,41391.0,0.71550858]
[1646379159430,0.2993761,41393.0,41392.0,0.06013723]
[1646379159628,0.2993761,41393.0,41392.0,0.42714823]
[1646379159827,0.2993761,41393.0,41392.0,0.367011]
[1646379160429,0.2993761,41393.0,41392.0,0.30459274]
[1646379160630,0.2993761,41394.0,41392.0,0.30459274]
[1646379161230,0.2993761,41394.0,41393.0,0.3]
[1646379161465,0.2864761,41395.0,41394.0,0.367052]
[1646379162265,0.2864761,41395.0,41394.0,0.43463878]
[1646379163669,0.2864761,41395.0,41394.0,0.367052]
[1646379164771,0.2864761,41395.0,41394.0,0.42187755]
[1646379165071,0.34918021,41398.0,41394.0,0.42187755]
[1646379167518,0.34918021,41399.0,41394.0,0.42187755]
[1646379168320,0.34918021,41398.0,41394.0,0.42187755]
[1646379168822,0.34918021,41399.0,41394.0,0.42187755]
[1646379169073,0.39935735,41401.0,41394.0,0.367052]
[1646379169074,0.34918021,41398.0,41394.0,0.367052]
[1646379169473,0.29907939,41396.0,41394.0,0.367052]
[1646379172078,0.29907939,41395.0,41394.0,0.367052]
[1646379174522,0.06549131,41400.0,41394.0,0.350852]
[1646379174523,0.34918021,41397.0,41394.0,0.350852]
[1646379174720,0.29915492,41395.0,41394.0,0.350852]
[1646379175121,0.34918021,41397.0,41394.0,0.450852]
[1646379175321,0.06549914,41398.0,41394.0,0.450852]
[1646379175322,0.29914918,41396.0,41394.0,0.450852]
[1646379176468,0.29914918,41397.0,41395.0,0.41963067]
[1646379177470,0.29914918,41398.0,41396.0,0.3]
[1646379177671,0.29914918,41401.0,41397.0,0.367044]
[1646379177872,0.29914918,41402.0,41397.0,0.367044]
[1646379178471,0.18652568,41401.0,41397.0,0.367044]
[1646379179678,0.18586482,41401.0,41397.0,0.367044]
[1646379179874,0.18554471,41401.0,41397.0,0.367044]
[1646379180522,0.48469389,41401.0,41397.0,0.367044]
[1646379181321,0.29914918,41400.0,41397.0,0.367044]
[1646379181525,0.48469389,41401.0,41397.0,0.367044]
[1646379182024,0.29914918,41400.0,41397.0,0.367044]
[1646379182224,0.48469389,41401.0,41397.0,0.367044]
[1646379182624,0.48460633,41401.0,41397.0,0.367044]
[1646379183222,0.29906162,41400.0,41397.0,0.367044]
[1646379184276,0.29906162,41399.0,41397.0,0.367044]
[1646379188618,0.29906162,41398.0,41397.0,0.367044]
[1646379189921,0.34890523,41401.0,41397.0,0.367044]
[1646379189922,0.29906162,41399.0,41397.0,0.367044]
[1646379190323,0.34890523,41399.0,41397.0,0.367044]
[1646379190522,0.34890523,41398.0,41397.0,0.367044]
[1646379191122,0.61375116,41398.0,41397.0,0.367044]
[1646379191465,0.34890523,41398.0,41397.0,0.367044]
[1646379192466,0.34890523,41399.0,41397.0,0.367044]
[1646379192770,0.6053395,41398.0,41397.0,0.367044]
[1646379193370,0.3377996,41398.0,41392.0,0.05586506]
[1646379193566,0.3377996,41398.0,41388.0,0.1233]
[1646379193567,0.29918217,41395.0,41388.0,0.1233]
[1646379193769,0.29918217,41395.0,41384.0,0.01207]
[1646379193770,0.01232999,41387.0,41384.0,0.01207]
[1646379193967,0.01232999,41387.0,41376.0,0.730141]
[1646379193968,0.367044,41386.0,41376.0,0.54319183]
[1646379194169,0.10399999,41387.0,41376.0,0.53111183]
[1646379194170,0.40318216,41387.0,41376.0,0.53111183]
[1646379194368,0.24936958,41384.0,41377.0,0.367044]
[1646379194769,0.25954506,41381.0,41377.0,0.367044]
[1646379194971,0.19744952,41382.0,41377.0,0.367044]
[1646379195424,0.19744952,41382.0,41376.0,0.53111183]
[1646379196424,0.19744952,41382.0,41377.0,0.367044]
[1646379198223,0.40063036,41382.0,41377.0,0.367044]
[1646379198624,0.40063036,41382.0,41376.0,0.53411183]
[1646379199082,0.40063036,41382.0,41376.0,0.53111183]
[1646379199280,0.19744952,41382.0,41376.0,0.53111183]
[1646379201481,0.42547677,41382.0,41376.0,0.53111183]
[1646379201881,0.19744952,41382.0,41376.0,0.53111183]
[1646379202281,0.005,41383.0,41376.0,0.53111183]
[1646379202482,0.005,41383.0,41377.0,0.367044]
[1646379202721,0.005,41383.0,41376.0,0.53111183]
[1646379202918,0.36137586,41387.0,41376.0,0.53111183]
[1646379202919,0.29918217,41385.0,41376.0,0.53111183]
[1646379203120,0.50552282,41385.0,41376.0,0.53103689]
[1646379203325,0.50552282,41385.0,41380.0,0.18557474]
[1646379203519,0.20634065,41385.0,41380.0,0.18557474]
[1646379204219,0.20634065,41385.0,41377.0,0.367044]
[1646379204618,0.20634065,41385.0,41376.0,0.83103689]
[1646379204819,0.20634065,41385.0,41376.0,0.53103689]
[1646379206466,0.40464701,41385.0,41376.0,0.53103689]
[1646379206665,0.20634065,41385.0,41376.0,0.53103689]
[1646379206870,0.20634065,41385.0,41376.0,0.83103689]
[1646379207066,0.20634065,41385.0,41377.0,0.06461799]
[1646379207667,0.20634065,41385.0,41376.0,0.53103689]
[1646379208268,0.20634065,41385.0,41376.0,0.83103689]
[1646379208470,0.20634065,41385.0,41376.0,0.53103689]
[1646379208471,0.19642619,41382.0,41376.0,0.53103689]
[1646379208673,0.26379619,41382.0,41376.0,0.53103689]
[1646379210821,0.367044,41381.0,41376.0,0.53103689]
[1646379211026,0.19642619,41382.0,41376.0,0.53103689]
[1646379211224,0.367044,41381.0,41376.0,0.53103689]
[1646379211925,0.19642619,41382.0,41376.0,0.53103689]
[1646379212123,0.39366031,41382.0,41376.0,0.53103689]
[1646379213124,0.19642619,41382.0,41376.0,0.53103689]
[1646379214270,0.0486,41384.0,41376.0,0.53103689]
[1646379215170,0.0486,41384.0,41377.0,0.18071205]
[1646379215670,0.0486,41384.0,41377.0,0.16264085]
[1646379216571,0.20634065,41385.0,41377.0,0.16264085]
[1646379216772,0.367044,41384.0,41377.0,0.16264085]
[1646379216972,0.20634065,41385.0,41377.0,0.16264085]
[1646379217839,0.190718,41384.0,41377.0,0.16264085]
[1646379218641,0.190718,41384.0,41376.0,0.53103689]
[1646379219442,0.50552282,41385.0,41376.0,0.53103689]
[1646379219843,0.21602065,41385.0,41376.0,0.53103689]
[1646379220044,0.20634065,41385.0,41376.0,0.53103689]
[1646379222871,0.367044,41384.0,41376.0,0.53103689]
[1646379223269,0.20634065,41385.0,41376.0,0.53103689]
[1646379223769,0.21602065,41385.0,41376.0,0.53103689]
[1646379224169,0.20634065,41385.0,41376.0,0.53103689]
[1646379224771,0.21513287,41386.0,41377.0,0.667044]
[1646379224772,0.29918217,41386.0,41377.0,0.667044]
[1646379224972,0.01232999,41387.0,41378.0,0.0486]
[1646379225219,0.01232999,41387.0,41379.0,0.367044]
[1646379225419,0.01232999,41387.0,41377.0,0.4]
[1646379225420,0.01232999,41387.0,41381.0,0.367044]
[1646379225923,0.01232999,41387.0,41383.0,0.367044]
[1646379227120,0.01232999,41387.0,41385.0,0.367044]
[1646379227721,0.01232999,41387.0,41386.0,0.667044]
[1646379232575,0.01232999,41387.0,41386.0,0.367044]
[1646379232825,0.01167755,41387.0,41386.0,0.367044]
[1646379233827,0.01167755,41387.0,41377.0,0.1166]
[1646379233828,0.72776742,41387.0,41377.0,0.1166]
[1646379234026,0.49373317,41383.0,41374.0,0.37651153]
[1646379234228,0.49373317,41383.0,41375.0,0.002]
[1646379235026,0.29919985,41382.0,41375.0,0.002]
[1646379235227,0.29919985,41381.0,41375.0,0.002]
[1646379235627,0.29919985,41381.0,41376.0,0.47793321]
[1646379236230,0.29919985,41381.0,41377.0,0.367044]
[1646379236467,0.08283217,41384.0,41378.0,0.3]
[1646379236468,0.29919985,41384.0,41378.0,0.3]
[1646379236674,0.29919985,41384.0,41379.0,0.367044]
[1646379237069,0.41485243,41385.0,41381.0,0.15683221]
[1646379237272,0.41485243,41385.0,41382.0,0.367044]
[1646379237469,0.64433284,41385.0,41381.0,0.15683221]
[1646379237670,0.29919985,41384.0,41381.0,0.15683221]
[1646379237870,0.29919985,41384.0,41382.0,0.367044]
[1646379238069,0.29919985,41384.0,41381.0,0.15683221]
[1646379238270,0.29938032,41382.0,41381.0,0.15683221]
[1646379238469,0.29938032,41382.0,41381.0,0.52387621]
[1646379238874,0.29938032,41383.0,41382.0,0.367044]
[1646379239872,0.29938032,41383.0,41376.0,0.47793321]
[1646379240071,0.29938032,41381.0,41376.0,0.47793321]
[1646379240324,0.29938032,41380.0,41377.0,0.367044]
[1646379240719,0.29938032,41379.0,41377.0,0.367044]
[1646379241119,0.29938032,41379.0,41376.0,0.47793321]
[1646379241921,0.29938032,41379.0,41377.0,0.367044]
[1646379242522,0.29938032,41379.0,41376.0,0.47793321]
[1646379245466,0.29938032,41379.0,41377.0,0.367044]
[1646379246672,0.29938032,41380.0,41377.0,0.367044]
[1646379247273,0.29938032,41379.0,41377.0,0.367044]
[1646379248830,0.29938032,41381.0,41377.0,0.367044]
[1646379249429,0.29938032,41381.0,41380.0,0.18113423]
[1646379249630,0.29938032,41381.0,41380.0,0.54817823]
[1646379251573,0.29938032,41383.0,41380.0,0.54817823]
[1646379251873,0.29938032,41383.0,41380.0,0.52340462]
[1646379252073,0.29938032,41384.0,41380.0,0.52340462]
[1646379252876,0.29938032,41384.0,41382.0,0.367044]
[1646379253274,0.29938032,41383.0,41382.0,0.367044]
[1646379255615,0.29938032,41383.0,41382.0,0.31470354]
[1646379258415,0.46471907,41385.0,41382.0,0.31470354]
[1646379259069,0.29934763,41383.0,41382.0,0.31470354]
[1646379259269,0.34906649,41384.0,41382.0,0.31470354]
[1646379259474,0.34906649,41384.0,41383.0,0.367096]
[1646379259672,0.34906649,41384.0,41380.0,0.15636062]
[1646379259871,0.29935581,41382.0,41381.0,0.367096]
[1646379260272,0.34906649,41384.0,41381.0,0.367096]
[1646379260273,0.34906649,41383.0,41381.0,0.367096]
[1646379260573,0.34906649,41383.0,41377.0,0.367096]
[1646379260773,0.2993632,41381.0,41377.0,0.367096]
[1646379260972,0.2993632,41380.0,41377.0,0.367096]
[1646379266472,0.2993632,41383.0,41377.0,0.667096]
[1646379266773,0.2993632,41383.0,41377.0,0.73367469]
[1646379266971,0.2993632,41384.0,41377.0,0.73367469]
[1646379267171,0.41501578,41385.0,41377.0,0.73367469]
[1646379267774,0.41501578,41385.0,41384.0,0.2036815]
[1646379267975,0.41501578,41385.0,41384.0,0.5707775]
[1646379268173,0.41501578,41385.0,41384.0,0.2036815]
[1646379268374,0.11565258,41385.0,41384.0,0.8707775]
[1646379268574,0.11565258,41385.0,41384.0,0.5707775]
[1646379269773,0.11565258,41385.0,41384.0,0.367096]
[1646379269975,0.11565258,41385.0,41384.0,0.667096]
[1646379273322,0.11565258,41385.0,41384.0,0.367096]
[1646379275779,0.11565258,41385.0,41384.0,0.36700874]
[1646379280022,0.09065258,41385.0,41384.0,0.36700874]
[1646379280324,0.38991812,41385.0,41384.0,0.36700874]
[1646379281674,0.09065258,41385.0,41384.0,0.36700874]
[1646379292574,0.38991812,41385.0,41384.0,0.36700874]
[1646379294534,0.09065258,41385.0,41378.0,0.01308]
[1646379294733,0.29928246,41384.0,41379.0,0.36709]
[1646379295534,0.49711576,41383.0,41379.0,0.36709]
[1646379296136,0.1978333,41383.0,41379.0,0.36709]
[1646379296576,0.49711576,41383.0,41379.0,0.36709]
[1646379298780,0.59928246,41382.0,41379.0,0.36709]
[1646379298984,0.71615649,41381.0,41375.0,0.002]
[1646379299180,0.29903953,41377.0,41375.0,0.002]
[1646379299780,0.29903953,41377.0,41375.0,0.17544061]
[1646379299984,0.29903953,41379.0,41377.0,0.36709]
[1646379300225,0.29903953,41380.0,41377.0,0.36709]
[1646379300629,0.29903953,41381.0,41377.0,0.36701145]
[1646379300826,0.53892988,41382.0,41377.0,0.36701145]
[1646379301026,0.29903953,41382.0,41377.0,0.36701145]
[1646379301430,0.29903953,41383.0,41377.0,0.36701145]
[1646379301630,0.18920255,41384.0,41377.0,0.36701145]
[1646379301631,0.29903953,41382.0,41377.0,0.36701145]
[1646379302030,0.2159489,41381.0,41377.0,0.36701145]
[1646379302429,0.51498843,41381.0,41377.0,0.36701145]
[1646379302627,0.2159489,41381.0,41377.0,0.36701145]
[1646379303129,0.51498843,41381.0,41377.0,0.36701145]
[1646379303527,0.29903953,41381.0,41377.0,0.36701145]
[1646379303728,0.29903953,41382.0,41377.0,0.36701145]
[1646379305488,0.29898976,41382.0,41377.0,0.36701145]
[1646379305689,0.29889486,41382.0,41377.0,0.36701145]
[1646379306091,0.69679549,41385.0,41377.0,0.36701145]
[1646379307394,0.69679549,41385.0,41382.0,0.18706066]
[1646379308031,0.69679549,41385.0,41382.0,0.01882866]
[1646379308429,0.69679549,41385.0,41376.0,0.47793321]
[1646379308629,0.69679549,41385.0,41377.0,0.367094]
[1646379309631,0.69679549,41385.0,41379.0,0.367094]
[1646379309931,0.69679549,41385.0,41380.0,0.367094]
[1646379310130,0.69679549,41385.0,41379.0,0.367094]
[1646379310729,0.34882139,41384.0,41379.0,0.367094]
[1646379310930,0.34882139,41383.0,41377.0,0.367094]
[1646379311593,0.34882139,41383.0,41376.0,0.47793321]
[1646379311801,0.15415342,41381.0,41376.0,0.47793321]
[1646379311994,0.15415342,41381.0,41377.0,0.367094]
[1646379312394,0.50297481,41381.0,41377.0,0.367094]
[1646379313195,0.15415342,41381.0,41377.0,0.367094]
[1646379313597,0.29905229,41380.0,41377.0,0.367094]
[1646379313796,0.29905229,41379.0,41376.0,0.47793321]
[1646379316044,0.29905229,41379.0,41377.0,0.367094]
[1646379316842,0.45415342,41381.0,41377.0,0.367094]
[1646379316843,0.29905229,41378.0,41377.0,0.367094]
[1646379317644,0.29905229,41379.0,41376.0,0.44122382]
[1646379318343,0.29905229,41379.0,41377.0,0.367094]
[1646379318744,0.29905229,41379.0,41377.0,0.36520153]
[1646379319784,0.29905229,41379.0,41377.0,0.367118]
[1646379319982,0.29905229,41379.0,41376.0,0.44122382]
[1646379320182,0.29905229,41378.0,41376.0,0.44122382]
[1646379322285,0.29905229,41378.0,41377.0,0.367118]
[1646379322728,0.29905229,41378.0,41376.0,0.44122382]
[1646379324133,0.29905229,41378.0,41377.0,0.367118]
[1646379325733,0.29905229,41379.0,41376.0,0.44122382]
[1646379326135,0.29905229,41378.0,41376.0,0.44222382]
[1646379326781,0.29905229,41378.0,41377.0,0.367118]
[1646379326981,0.29905229,41378.0,41376.0,0.44222382]
[1646379327480,0.29905229,41379.0,41377.0,0.367118]
[1646379327681,0.29905229,41378.0,41376.0,0.44122382]
[1646379328082,0.29905229,41378.0,41376.0,0.44222382]
[1646379329482,0.29905229,41378.0,41376.0,0.44122382]
[1646379331338,0.29905229,41378.0,41377.0,0.367118]
[1646379331538,0.29905229,41378.0,41376.0,0.44122382]
[1646379331739,0.29905229,41378.0,41377.0,0.367118]
[1646379332038,0.29905229,41378.0,41376.0,0.44122382]
[1646379333640,0.29905229,41378.0,41377.0,0.367118]
[1646379333839,0.29905939,41378.0,41377.0,0.367118]
[1646379335092,0.29905939,41378.0,41376.0,0.44122382]
[1646379335493,0.29905939,41377.0,41376.0,0.44122382]
[1646379335692,0.29905939,41377.0,41376.0,0.80834182]
[1646379336294,0.34882139,41380.0,41376.0,0.72730764]
[1646379336295,0.29905939,41378.0,41376.0,0.72730764]
[1646379336496,0.29905939,41379.0,41377.0,0.367118]
[1646379336696,0.29905939,41379.0,41378.0,0.15593238]
[1646379336897,0.29905939,41384.0,41379.0,0.89964998]
[1646379337098,0.29905939,41383.0,41379.0,0.89964998]
[1646379338337,0.29905939,41382.0,41379.0,0.89964998]
[1646379339135,0.29905939,41381.0,41379.0,0.53253198]
[1646379339533,0.34882139,41383.0,41379.0,0.53253198]
[1646379339534,0.29905939,41380.0,41379.0,0.53253198]
[1646379339734,0.29905939,41380.0,41379.0,0.89964998]
[1646379340136,0.29905939,41380.0,41379.0,0.53253198]
[1646379340737,0.59905939,41380.0,41379.0,0.53253198]
[1646379340940,0.34882139,41381.0,41379.0,0.53253198]
[1646379342376,0.34882139,41381.0,41380.0,0.367118]
[1646379343175,0.34882139,41381.0,41379.0,0.53253198]
[1646379343376,0.34882139,41381.0,41380.0,0.367118]
[1646379343576,0.34882139,41381.0,41379.0,0.53253198]
[1646379343778,0.34882139,41381.0,41380.0,0.367118]
[1646379344075,0.0599511,41381.0,41379.0,0.53253198]
[1646379344275,0.34892501,41380.0,41379.0,0.53253198]
[1646379344976,0.34892501,41380.0,41379.0,0.89964998]
[1646379345249,0.34892501,41381.0,41380.0,0.367118]
[1646379345448,0.34892501,41381.0,41379.0,0.53253198]
[1646379345848,0.34892501,41381.0,41380.0,0.367118]
[1646379346052,0.34892501,41381.0,41379.0,0.53253198]
[1646379346452,0.34892501,41380.0,41379.0,0.53253198]
[1646379346649,0.34892501,41380.0,41379.0,0.89964998]
[1646379348454,0.34892501,41382.0,41379.0,0.89964998]
[1646379348655,0.34892501,41382.0,41380.0,0.367118]
[1646379349087,0.34892501,41382.0,41379.0,0.53253198]
[1646379349286,0.34892501,41382.0,41380.0,0.367118]
[1646379349686,0.34892501,41382.0,41379.0,0.53253198]
[1646379349884,0.42668397,41386.0,41379.0,0.53253198]
[1646379349885,0.34892501,41381.0,41379.0,0.53253198]
[1646379350084,0.34892501,41380.0,41379.0,0.53253198]
[1646379354243,0.06821794,41380.0,41379.0,0.53253198]
[1646379354838,0.3490131,41381.0,41379.0,0.53253198]
[1646379355238,0.3490131,41382.0,41379.0,0.53253198]
[1646379355839,0.29916172,41380.0,41379.0,0.53253198]
[1646379356039,0.3490131,41382.0,41379.0,0.53253198]
[1646379356238,0.3490131,41381.0,41379.0,0.53253198]
[1646379356780,0.3490131,41380.0,41379.0,0.53253198]
[1646379357979,0.3490131,41381.0,41379.0,0.53253198]
[1646379358180,0.3586941,41381.0,41379.0,0.53245993]
[1646379358379,0.3490131,41381.0,41379.0,0.53245993]
[1646379361728,0.3490131,41380.0,41379.0,0.53245993]
[1646379362729,0.07428258,41380.0,41379.0,0.53245993]
[1646379363129,0.19343753,41382.0,41379.0,0.53245993]
[1646379363329,0.07428258,41381.0,41379.0,0.53245993]
[1646379363981,0.07428258,41380.0,41379.0,0.53245993]
[1646379364487,0.367118,41384.0,41379.0,0.53245993]
[1646379364682,0.07428258,41383.0,41379.0,0.53245993]
[1646379364881,0.21856491,41381.0,41379.0,0.53245993]
[1646379365083,0.07428258,41380.0,41379.0,0.53245993]
[1646379365483,0.07428258,41385.0,41379.0,0.53245993]
[1646379365682,0.07428258,41384.0,41379.0,0.53245993]
[1646379365882,0.07428258,41383.0,41379.0,0.53245993]
[1646379366087,0.21200927,41384.0,41379.0,0.53245993]
[1646379366284,0.07428258,41383.0,41379.0,0.53245993]
[1646379367283,0.34898013,41380.0,41379.0,0.89957793]
[1646379367483,0.34898013,41381.0,41379.0,0.89940843]
[1646379367743,0.34898013,41381.0,41379.0,0.53229043]
[1646379368144,0.34898013,41380.0,41379.0,0.53229043]
[1646379370347,0.08106803,41380.0,41379.0,0.53229043]
[1646379371148,0.38435974,41380.0,41379.0,0.53229043]
[1646379371483,0.1142845,41380.0,41379.0,0.53229043]
[1646379373289,0.07882855,41380.0,41379.0,0.53229043]
[1646379373486,0.81692855,41385.0,41379.0,0.53229043]
[1646379373687,0.81692855,41384.0,41379.0,0.53229043]
[1646379373886,0.07882855,41383.0,41379.0,0.53229043]
[1646379374087,0.009681,41381.0,41379.0,0.53229043]
[1646379374286,0.7381,41384.0,41379.0,0.53229043]
[1646379374287,0.23762967,41380.0,41379.0,0.53229043]
[1646379374489,0.68084767,41380.0,41379.0,0.53229043]
[1646379374688,0.31372967,41380.0,41379.0,0.53229043]
[1646379374889,0.15492855,41380.0,41379.0,0.53229043]
[1646379375733,0.07882855,41380.0,41379.0,0.53229043]
[1646379377034,0.28569779,41380.0,41379.0,0.53229043]
[1646379377236,0.07882855,41380.0,41379.0,0.53229043]
[1646379380384,0.44594655,41380.0,41379.0,0.53229043]
[1646379381184,0.07882855,41380.0,41379.0,0.53229043]
[1646379384934,0.34884049,41380.0,41379.0,0.53229043]
[1646379385535,0.34884049,41380.0,41379.0,1.25206438]
[1646379385736,0.39865302,41388.0,41379.0,1.25206438]
[1646379385739,0.34884049,41382.0,41379.0,1.25206438]
[1646379385933,0.34884049,41382.0,41380.0,0.367118]
[1646379386134,0.009681,41383.0,41379.0,0.88494638]
[1646379386334,0.34883369,41382.0,41380.0,0.367118]
[1646379386581,0.5,41388.0,41379.0,0.88494638]
[1646379386582,0.34883369,41381.0,41379.0,0.88494638]
[1646379386786,0.34883369,41381.0,41379.0,0.53229043]
[1646379387183,0.25724003,41385.0,41379.0,0.53229043]